fUST/lending_fUST_20250726
["ID","MTS","AMOUNT","RATE_DAILY","PERIOD"]
[375008008,1753499441279,-478.55183264,0.00019178,2]
[375008010,1753499441288,-460.0,0.00019178,2]
[375008012,1753499441297,-460.0,0.00019178,2]
[375008014,1753499441307,-549.08007226,0.00019178,2]
[375008016,1753499441318,-460.0,0.00019178,2]
[375008018,1753499441330,-460.0,0.00019178,2]
[375008020,1753499441340,-460.77361098,0.00019178,2]
[375008022,1753499441349,-461.44328519,0.00019178,2]
[375008024,1753499441359,-460.0,0.00019178,2]
[375008026,1753499441370,-463.00204974,0.00019178,2]
[375008029,1753499441380,-460.0,0.00019178,2]
[375008031,1753499441389,-460.0,0.00019178,2]
[375008033,1753499441398,-461.69045493,0.00019178,2]
[375008035,1753499441410,-460.0,0.00019178,2]
[375008037,1753499441420,-229.49131459,0.00019178,2]
[375008039,1753499441434,-230.50868541,0.00019178,2]
[375008041,1753499441443,-460.0,0.00019178,2]
[375008043,1753499441452,-462.36420738,0.00019178,2]
[375008045,1753499441463,-460.0,0.00019178,2]
[375008047,1753499441473,-460.0,0.00019178,2]
[375008049,1753499441483,-460.0,0.00019178,2]
[375008051,1753499441492,-460.0,0.00019178,2]
[375008053,1753499441502,-201.87969918,0.00019178,2]
[375008055,1753499441513,-258.12030082,0.00019178,2]
[375008057,1753499441523,-460.0,0.00019178,2]
[375008059,1753499441536,-503.05960375,0.00019178,2]
[375008061,1753499441546,-460.94524961,0.00019178,2]
[375008063,1753499441557,-460.0,0.00019178,2]
[375008065,1753499441566,-460.0,0.00019178,2]
[375008067,1753499441575,-460.0,0.00019178,2]
[375008069,1753499441586,-460.0,0.00019178,2]
[375008071,1753499441596,-461.74106813,0.00019178,2]
[375008073,1753499441605,-464.33082002,0.00019178,2]
[375008076,1753499441616,-464.33861467,0.00019178,2]
[375008078,1753499441625,-302.5223024,0.00019178,2]
[375008080,1753499441638,-158.45706225,0.00019178,2]
[375008082,1753499441648,-460.0,0.00019178,2]
[375008084,1753499441657,-18.65233788,0.00019178,2]
[375008088,1753499441687,-443.87056796,0.00019178,2]
[375008090,1753499441696,-244.16229043,0.00019178,2]
[375008092,1753499441706,-231.96714161,0.00019178,2]
[375008106,1753499441833,-295.36706347,0.00019178,2]
[375008108,1753499441842,-460.0,0.00019178,2]
[375008110,1753499441851,-460.99926377,0.00019178,2]
[375008112,1753499441861,-460.0,0.00019178,2]
[375008114,1753499441871,-460.0,0.00019178,2]
[375008116,1753499441882,-463.24570306,0.00019178,2]
[375008118,1753499441892,-460.95136076,0.00019178,2]
[375008120,1753499441902,-460.0,0.00019178,2]
[375008122,1753499441912,-460.0,0.00019178,2]
[375008124,1753499441921,-461.56656757,0.00019178,2]
[375008125,1753499441930,-511.52307931,0.00019178,2]
[375008126,1753499441939,-460.0,0.00019178,2]
[375008127,1753499441949,-460.0,0.00019178,2]
[375008128,1753499441958,-460.0,0.00019178,2]
[375008129,1753499441967,-450.74988826,0.00019178,2]
[375008278,1753499443475,-12.49857811,0.00019178,2]
[375008280,1753499443486,-460.0,0.00019178,2]
[375008282,1753499443496,-402.21640854,0.00019178,2]
[375008586,1753499446515,-58.44533828,0.00019178,2]
[375008588,1753499446524,-460.0,0.00019178,2]
[375008590,1753499446533,-460.0,0.00019178,2]
[375008592,1753499446543,-543.18513954,0.00019178,2]
[375008594,1753499446552,-522.75867609,0.00019178,2]
[375008596,1753499446561,-605.78605817,0.00019178,2]
[375008598,1753499446570,-42.65701164,0.00019178,2]
[375008610,1753499446681,-417.83956176,0.00019178,2]
[375008612,1753499446691,-91.65048429,0.00019178,2]
[375008614,1753499446703,-371.59372443,0.00019178,2]
[375008616,1753499446712,-461.64540991,0.00019178,2]
[375008618,1753499446721,-467.76784687,0.00019178,2]
[375008620,1753499446731,-460.0,0.00019178,2]
[375008622,1753499446740,-461.18762767,0.00019178,2]
[375008624,1753499446749,-464.9951088,0.00019178,2]
[375008626,1753499446759,-460.0,0.00019178,2]
[375008628,1753499446768,-460.0,0.00019178,2]
[375008630,1753499446777,-460.0,0.00019178,2]
[375008632,1753499446786,-424.59106955,0.00019178,2]
[375008634,1753499446796,-298.72157157,0.00019178,2]
[375008636,1753499446805,-438.7383212,0.00019178,2]
[375008968,1753499642098,162.0,0.00018,2]
[375008969,1753499745607,214374.08989046,0.00023,60]
[375008970,1753499750504,255.30211457,0.0002616,120]
[375008971,1753499791558,995.326,0.0002615,120]
[375008972,1753499791580,718.54996693,0.0002615,120]
[375008973,1753499842627,1009.49252573,0.00018,2]
[375008974,1753499888454,-222.12733184,0.00017214,2]
[375008975,1753500030658,1348.33741685,0.00017,2]
[375008976,1753500030682,3651.66258315,0.00017,2]
[375008977,1753500046895,5000.0,0.00017,2]
[375008979,1753500057371,280.106996,0.00013699,2]
[375008980,1753500062021,5000.0,0.00017,2]
[375008981,1753500070742,1025.17932632,0.00017,2]
[375008982,1753500079341,5000.0,0.00017,2]
[375008983,1753500081147,-46.68687334,0.00017214,2]
[375008984,1753500189246,43.05109453,0.00016835,2]
[375008985,1753500189269,196.52599292,0.00016835,2]
[375008998,1753500479620,-164.89,0.00017369,2]
[375009006,1753500482443,-301.91,0.00017369,2]
[375009011,1753500491087,179.68281559,0.00016501,2]
[375009033,1753500525557,1155.00662327,0.0001,2]
[375009035,1753500552850,-4533.2,0.00017369,2]
[375009036,1753500552873,-300.0,0.00018117,2]
[375009037,1753500552895,-300.0,0.00018118,2]
[375009038,1753500552916,-813.0,0.00018118,2]
[375009039,1753500552937,-601.0,0.00018118,2]
[375009040,1753500552959,-281.02272888,0.00018119,2]
[375009041,1753500552980,-24900.0,0.0001812,2]
[375009042,1753500553001,-3448.33702911,0.00018784,2]
[375009043,1753500553021,-177.66990642,0.00018999,2]
[375009044,1753500553041,-10645.77033559,0.00019,2]
[375009074,1753500632755,-674.479141,0.00018711,2]
[375009075,1753500632812,-433.8591904,0.00018711,2]
[375009076,1753500632828,-3659.19530598,0.00018711,2]
[375009192,1753500638566,-232.46636262,0.00018711,2]
[375009194,1753500638577,-214.03384711,0.00018887,2]
[375009196,1753500638755,-448.87590166,0.000189,2]
[375009197,1753500638766,-448.87590165,0.00018987,2]
[375009198,1753500638776,-300.0,0.00018999,2]
[375009199,1753500638786,-181.0,0.00018999,2]
[375009200,1753500638796,-5044.37341832,0.00019,2]
[375009201,1753500638806,-1504.21985623,0.00019073,2]
[375009202,1753500638816,-448.87590165,0.00019073,2]
[375009203,1753500638826,-1095.6937408,0.00019078,2]
[375009204,1753500638838,-1514.10566017,0.00019078,2]
[375009205,1753500638850,-4922.45678426,0.00019078,2]
[375009206,1753500638863,-1521.60260071,0.00019078,2]
[375009207,1753500638875,-1859.72558473,0.00019078,2]
[375009208,1753500638885,-214.03384711,0.00019078,2]
[375009209,1753500638894,-17889.10463817,0.00019078,2]
[375009210,1753500638904,-3671.92779937,0.00019078,2]
[375009211,1753500638914,-6305.52193266,0.00019078,2]
[375009212,1753500638926,-19558.92631735,0.00019078,2]
[375009213,1753500638939,-7181.92502547,0.00019078,2]
[375009214,1753500638951,-397.50277927,0.00019078,2]
[375009215,1753500638963,-859.12926751,0.00019078,2]
[375009216,1753500638978,-1567.3008456,0.00019078,2]
[375009217,1753500638990,-378.33274458,0.00019078,2]
[375009218,1753500639000,-163.0,0.000191,2]
[375009219,1753500639011,-76.65135768,0.000191,2]
[375009220,1753500639025,-85.34864232,0.000191,2]
[375009221,1753500639035,-1504.21985622,0.00019143,2]
[375009222,1753500639045,-659.31,0.0001916,3]
[375009223,1753500639055,-415.05,0.0001916,3]
[375009224,1753500639065,-207.52,0.0001916,3]
[375009225,1753500639074,-596.90470062,0.0001916,3]
[375009226,1753500639091,-25.69529938,0.0001916,3]
[375009227,1753500639100,-100002.33709466,0.0001917,2]
[375009228,1753500639110,-501.15255493,0.00019173,2]
[375009229,1753500639120,-510.5889094,0.00019173,2]
[375009230,1753500639130,-500.0,0.00019173,2]
[375009231,1753500639139,-500.0,0.00019173,2]
[375009232,1753500639149,-574.07447899,0.00019173,2]
[375009233,1753500639158,-500.0,0.00019173,2]
[375009234,1753500639168,-633.7113685,0.00019173,2]
[375009235,1753500639177,-500.0,0.00019173,2]
[375009236,1753500639187,-502.42350243,0.00019173,2]
[375009237,1753500639196,-462.85621092,0.00019178,2]
[375009238,1753500639205,-460.0,0.00019178,2]
[375009239,1753500639217,-460.94297008,0.00019178,2]
[375009240,1753500639226,-462.3386407,0.00019178,2]
[375009241,1753500639236,-462.13181464,0.00019178,2]
[375009242,1753500639245,-460.0,0.00019178,2]
[375009243,1753500639254,-460.0,0.00019178,2]
[375009244,1753500639264,-464.83727266,0.00019178,2]
[375009245,1753500639274,-462.67454495,0.00019178,2]
[375009246,1753500639284,-460.0,0.00019178,2]
[375009247,1753500639293,-461.26444577,0.00019178,2]
[375009248,1753500639303,-464.82932685,0.00019178,2]
[375009249,1753500639312,-463.51689295,0.00019178,2]
[375009250,1753500639322,-462.87804913,0.00019178,2]
[375009251,1753500639333,-462.12385507,0.00019178,2]
[375009252,1753500639343,-460.0,0.00019178,2]
[375009253,1753500639353,-460.0,0.00019178,2]
[375009254,1753500639363,-461.62183362,0.00019178,2]
[375009255,1753500639373,-464.29611359,0.00019178,2]
[375009256,1753500639382,-460.0,0.00019178,2]
[375009257,1753500639392,-461.55440217,0.00019178,2]
[375009258,1753500639402,-460.66407924,0.00019178,2]
[375009259,1753500639411,-461.43464817,0.00019178,2]
[375009260,1753500639421,-460.0,0.00019178,2]
[375009261,1753500639431,-463.10008482,0.00019178,2]
[375009262,1753500639441,-460.0,0.00019178,2]
[375009263,1753500639452,-460.0,0.00019178,2]
[375009264,1753500639464,-461.38332845,0.00019178,2]
[375009265,1753500639476,-460.0,0.00019178,2]
[375009266,1753500639486,-460.0,0.00019178,2]
[375009267,1753500639495,-460.0,0.00019178,2]
[375009268,1753500639504,-462.11832515,0.00019178,2]
[375009269,1753500639514,-461.75125942,0.00019178,2]
[375009270,1753500639524,-463.362683,0.00019178,2]
[375009271,1753500639536,-461.35932943,0.00019178,2]
[375009272,1753500639546,-462.12675587,0.00019178,2]
[375009273,1753500639556,-462.19313888,0.00019178,2]
[375009274,1753500639565,-463.00551266,0.00019178,2]
[375009275,1753500639575,-461.49609007,0.00019178,2]
[375009276,1753500639584,-462.94460664,0.00019178,2]
[375009277,1753500639594,-401.16939626,0.00019178,2]
[375009278,1753500639605,-465.22367938,0.00019178,2]
[375009279,1753500639614,-467.94471371,0.00019178,2]
[375009280,1753500639624,-460.0,0.00019178,2]
[375009281,1753500639633,-472.47293805,0.00019178,2]
[375009282,1753500639642,-460.0,0.00019178,2]
[375009283,1753500639652,-460.0,0.00019178,2]
[375009284,1753500639661,-460.84634206,0.00019178,2]
[375009285,1753500639671,-460.0,0.00019178,2]
[375009286,1753500639684,-460.0,0.00019178,2]
[375009287,1753500639694,-460.0,0.00019178,2]
[375009288,1753500639704,-461.62425492,0.00019178,2]
[375009289,1753500639714,-460.0,0.00019178,2]
[375009290,1753500639726,-463.70304553,0.00019178,2]
[375009291,1753500639736,-460.0,0.00019178,2]
[375009292,1753500639745,-462.01124205,0.00019178,2]
[375009293,1753500639755,-460.0,0.00019178,2]
[375009294,1753500639765,-464.87825846,0.00019178,2]
[375009295,1753500639774,-460.0,0.00019178,2]
[375009296,1753500639783,-460.0,0.00019178,2]
[375009297,1753500639793,-462.82638303,0.00019178,2]
[375009298,1753500639803,-498.84201633,0.00019178,2]
[375009299,1753500639812,-464.82710296,0.00019178,2]
[375009300,1753500639823,-460.0,0.00019178,2]
[375009301,1753500639833,-484.49959062,0.00019178,2]
[375009302,1753500639842,-463.5782896,0.00019178,2]
[375009303,1753500639852,-460.0,0.00019178,2]
[375009304,1753500639861,-460.0,0.00019178,2]
[375009305,1753500639871,-460.0,0.00019178,2]
[375009306,1753500639889,-460.0,0.00019178,2]
[375009307,1753500639902,-456.21,0.00019178,2]
[375009308,1753500639913,-460.94173601,0.00019178,2]
[375009309,1753500639923,-460.9871696,0.00019178,2]
[375009310,1753500639934,-460.0,0.00019178,2]
[375009311,1753500639944,-460.0,0.00019178,2]
[375009312,1753500639955,-460.0,0.00019178,2]
[375009313,1753500639968,-460.0,0.00019178,2]
[375009314,1753500639978,-462.5965178,0.00019178,2]
[375009315,1753500639987,-443.10377566,0.00019178,2]
[375009316,1753500639997,-461.37379332,0.00019178,2]
[375009317,1753500640007,-464.74252155,0.00019178,2]
[375009318,1753500640018,-371.80634268,0.00019178,2]
[375009319,1753500640028,-460.0,0.00019178,2]
[375009320,1753500640038,-463.46620172,0.00019178,2]
[375009321,1753500640048,-460.0,0.00019178,2]
[375009322,1753500640058,-463.03501885,0.00019178,2]
[375009323,1753500640068,-462.16146119,0.00019178,2]
[375009324,1753500640078,-462.32569314,0.00019178,2]
[375009325,1753500640089,-460.0,0.00019178,2]
[375009326,1753500640099,-460.0,0.00019178,2]
[375009327,1753500640109,-460.0,0.00019178,2]
[375009328,1753500640120,-460.0,0.00019178,2]
[375009329,1753500640131,-446.62696623,0.00019178,2]
[375009330,1753500640141,-460.0,0.00019178,2]
[375009331,1753500640151,-463.70005553,0.00019178,2]
[375009332,1753500640162,-460.0,0.00019178,2]
[375009333,1753500640172,-463.45295636,0.00019178,2]
[375009334,1753500640182,-460.0,0.00019178,2]
[375009335,1753500640192,-460.0,0.00019178,2]
[375009336,1753500640202,-460.0,0.00019178,2]
[375009337,1753500640212,-460.0,0.00019178,2]
[375009338,1753500640224,-470.38111641,0.00019178,2]
[375009339,1753500640235,-465.04448479,0.00019178,2]
[375009341,1753500640245,-464.33019395,0.00019178,2]
[375009342,1753500640255,-460.0,0.00019178,2]
[375009343,1753500640265,-464.4276212,0.00019178,2]
[375009344,1753500640275,-470.13926125,0.00019178,2]
[375009345,1753500640285,-269.4972036,0.00019178,2]
[375009347,1753500640295,-462.97176585,0.00019178,2]
[375009349,1753500640305,-460.0,0.00019178,2]
[375009351,1753500640315,-460.0,0.00019178,2]
[375009353,1753500640325,-461.91028988,0.00019178,2]
[375009355,1753500640335,-245.21327582,0.00019178,2]
[375009357,1753500640345,-460.0,0.00019178,2]
[375009359,1753500640354,-460.0,0.00019178,2]
[375009361,1753500640365,-460.0,0.00019178,2]
[375009363,1753500640374,-463.44161823,0.00019178,2]
[375009365,1753500640384,-460.0,0.00019178,2]
[375009367,1753500640394,-460.0,0.00019178,2]
[375009369,1753500640404,-460.0,0.00019178,2]
[375009371,1753500640414,-465.39124234,0.00019178,2]
[375009373,1753500640423,-460.0,0.00019178,2]
[375009375,1753500640433,-469.08720227,0.00019178,2]
[375009377,1753500640443,-460.0,0.00019178,2]
[375009379,1753500640457,-472.1530591,0.00019178,2]
[375009381,1753500640468,-460.0,0.00019178,2]
[375009383,1753500640477,-461.62265586,0.00019178,2]
[375009385,1753500640487,-460.0,0.00019178,2]
[375009387,1753500640498,-460.0,0.00019178,2]
[375009389,1753500640508,-460.0,0.00019178,2]
[375009392,1753500640521,-460.0,0.00019178,2]
[375009394,1753500640532,-403.03499378,0.00019178,2]
[375009396,1753500640542,-460.0,0.00019178,2]
[375009398,1753500640552,-460.0,0.00019178,2]
[375009400,1753500640561,-460.0,0.00019178,2]
[375009402,1753500640572,-460.0,0.00019178,2]
[375009404,1753500640582,-460.0,0.00019178,2]
[375009406,1753500640596,-460.0,0.00019178,2]
[375009408,1753500640606,-460.0,0.00019178,2]
[375009410,1753500640616,-460.0,0.00019178,2]
[375009412,1753500640627,-460.0,0.00019178,2]
[375009414,1753500640639,-466.20246161,0.00019178,2]
[375009416,1753500640648,-460.0,0.00019178,2]
[375009418,1753500640658,-460.0,0.00019178,2]
[375009420,1753500640668,-300.95510676,0.00019178,2]
[375009422,1753500640678,-460.0,0.00019178,2]
[375009424,1753500640688,-460.0,0.00019178,2]
[375009426,1753500640699,-462.81759673,0.00019178,2]
[375009428,1753500640709,-183.69955394,0.00019178,2]
[375009430,1753500640720,-460.83031915,0.00019178,2]
[375009432,1753500640730,-460.0,0.00019178,2]
[375009434,1753500640740,-465.11359629,0.00019178,2]
[375009436,1753500640749,-460.0,0.00019178,2]
[375009439,1753500640760,-328.43181661,0.00019178,2]
[375009441,1753500640770,-460.0,0.00019178,2]
[375009444,1753500640780,-460.0,0.00019178,2]
[375009446,1753500640789,-460.0,0.00019178,2]
[375009448,1753500640799,-460.0,0.00019178,2]
[375009450,1753500640809,-460.0,0.00019178,2]
[375009452,1753500640819,-460.0,0.00019178,2]
[375009454,1753500640829,-460.0,0.00019178,2]
[375009456,1753500640839,-460.0,0.00019178,2]
[375009458,1753500640848,-610.56,0.00019178,2]
[375009461,1753500640858,-460.0,0.00019178,2]
[375009463,1753500640868,-460.0,0.00019178,2]
[375009465,1753500640877,-460.0,0.00019178,2]
[375009467,1753500640887,-460.0,0.00019178,2]
[375009469,1753500640897,-460.0,0.00019178,2]
[375009471,1753500640907,-420.79500683,0.00019178,2]
[375009473,1753500640917,-460.0,0.00019178,2]
[375009475,1753500640927,-460.0,0.00019178,2]
[375009477,1753500640936,-494.25,0.00019178,2]
[375009479,1753500640946,-460.0,0.00019178,2]
[375009481,1753500640955,-524.98,0.00019178,2]
[375009483,1753500640965,-460.0,0.00019178,2]
[375009485,1753500640975,-460.0,0.00019178,2]
[375009487,1753500640985,-460.0,0.00019178,2]
[375009489,1753500640994,-463.25758022,0.00019178,2]
[375009491,1753500641003,-460.0,0.00019178,2]
[375009493,1753500641013,-463.83762708,0.00019178,2]
[375009495,1753500641023,-472.63458133,0.00019178,2]
[375009497,1753500641033,-460.0,0.00019178,2]
[375009499,1753500641042,-461.24724594,0.00019178,2]
[375009501,1753500641052,-460.0,0.00019178,2]
[375009503,1753500641061,-460.0,0.00019178,2]
[375009505,1753500641071,-460.0,0.00019178,2]
[375009507,1753500641081,-460.0,0.00019178,2]
[375009509,1753500641091,-460.0,0.00019178,2]
[375009511,1753500641101,-461.5304504,0.00019178,2]
[375009513,1753500641111,-462.38341549,0.00019178,2]
[375009515,1753500641121,-460.0,0.00019178,2]
[375009517,1753500641130,-460.0,0.00019178,2]
[375009519,1753500641140,-460.0,0.00019178,2]
[375009534,1753500641275,-460.0,0.00019178,2]
[375009537,1753500641286,-460.0,0.00019178,2]
[375009538,1753500641295,-464.7302657,0.00019178,2]
[375009541,1753500641305,-464.51550567,0.00019178,2]
[375009543,1753500641315,-464.2998844,0.00019178,2]
[375009545,1753500641324,-460.0,0.00019178,2]
[375009547,1753500641334,-469.59264407,0.00019178,2]
[375009549,1753500641344,-460.0,0.00019178,2]
[375009551,1753500641353,-469.34242649,0.00019178,2]
[375009553,1753500641363,-460.0,0.00019178,2]
[375009555,1753500641373,-475.00467818,0.00019178,2]
[375009557,1753500641383,-471.42265284,0.00019178,2]
[375009559,1753500641392,-460.0,0.00019178,2]
[375009561,1753500641402,-460.0,0.00019178,2]
[375009563,1753500641411,-198.94609647,0.00019178,2]
[375009565,1753500641420,-460.0,0.00019178,2]
[375009567,1753500641430,-466.27858705,0.00019178,2]
[375009569,1753500641439,-460.0,0.00019178,2]
[375009571,1753500641458,-460.0,0.00019178,2]
[375009573,1753500641473,-460.0,0.00019178,2]
[375009575,1753500641482,-460.0,0.00019178,2]
[375009577,1753500641492,-460.0,0.00019178,2]
[375009579,1753500641502,-465.30767369,0.00019178,2]
[375009581,1753500641512,-463.82105709,0.00019178,2]
[375009583,1753500641521,-460.0,0.00019178,2]
[375009585,1753500641532,-462.23721776,0.00019178,2]
[375009587,1753500641542,-500.0,0.00019178,2]
[375009589,1753500641551,-461.75239722,0.00019178,2]
[375009591,1753500641561,-500.0,0.00019178,2]
[375009593,1753500641570,-500.0,0.00019178,2]
[375009595,1753500641580,-160.12737902,0.00019178,2]
[375009597,1753500641590,-460.0,0.00019178,2]
[375009599,1753500641599,-460.0,0.00019178,2]
[375009601,1753500641609,-463.53273965,0.00019178,2]
[375009603,1753500641618,-460.0,0.00019178,2]
[375009605,1753500641628,-460.0,0.00019178,2]
[375009607,1753500641638,-421.45532179,0.00019178,2]
[375009609,1753500641647,-460.0,0.00019178,2]
[375009610,1753500641656,-460.0,0.00019178,2]
[375009613,1753500641666,-460.0,0.00019178,2]
[375009615,1753500641675,-460.81416241,0.00019178,2]
[375009616,1753500641685,-463.054452,0.00019178,2]
[375009619,1753500641694,-462.49005568,0.00019178,2]
[375009621,1753500641704,-509.89571059,0.00019178,2]
[375009622,1753500641714,-460.0,0.00019178,2]
[375009625,1753500641726,-460.0,0.00019178,2]
[375009627,1753500641736,-460.0,0.00019178,2]
[375009629,1753500641746,-460.0,0.00019178,2]
[375009631,1753500641757,-460.0,0.00019178,2]
[375009633,1753500641776,-460.52646501,0.00019178,2]
[375009635,1753500641786,-278.8312821,0.00019178,2]
[375009637,1753500641796,-460.0,0.00019178,2]
[375009639,1753500641806,-466.07528846,0.00019178,2]
[375009641,1753500641816,-460.0,0.00019178,2]
[375009643,1753500641827,-462.72333816,0.00019178,2]
[375009645,1753500641837,-460.0,0.00019178,2]
[375009647,1753500641846,-460.0,0.00019178,2]
[375009649,1753500641856,-460.0,0.00019178,2]
[375009651,1753500641865,-460.0,0.00019178,2]
[375009653,1753500641874,-460.0,0.00019178,2]
[375009655,1753500641883,-460.0,0.00019178,2]
[375009657,1753500641893,-460.0,0.00019178,2]
[375009659,1753500641902,-468.06874903,0.00019178,2]
[375009661,1753500641912,-460.0,0.00019178,2]
[375009663,1753500641922,-460.0,0.00019178,2]
[375009665,1753500641931,-460.0,0.00019178,2]
[375009667,1753500641941,-460.0,0.00019178,2]
[375009669,1753500641950,-460.0,0.00019178,2]
[375009671,1753500641960,-460.0,0.00019178,2]
[375009673,1753500641972,-460.0,0.00019178,2]
[375009675,1753500641982,-460.0,0.00019178,2]
[375009677,1753500641992,-460.0,0.00019178,2]
[375009679,1753500642003,-461.78948786,0.00019178,2]
[375009681,1753500642013,-463.50519572,0.00019178,2]
[375009683,1753500642022,-376.18709842,0.00019178,2]
[375009685,1753500642032,-461.88020488,0.00019178,2]
[375009687,1753500642042,-460.0,0.00019178,2]
[375009689,1753500642052,-485.35582138,0.00019178,2]
[375009691,1753500642061,-460.0,0.00019178,2]
[375009693,1753500642071,-460.0,0.00019178,2]
[375009695,1753500642081,-460.0,0.00019178,2]
[375009697,1753500642091,-466.7941392,0.00019178,2]
[375009699,1753500642100,-464.04862406,0.00019178,2]
[375009701,1753500642109,-460.0,0.00019178,2]
[375009703,1753500642119,-456.82934517,0.00019178,2]
[375009705,1753500642129,-460.0,0.00019178,2]
[375009707,1753500642138,-460.0,0.00019178,2]
[375009709,1753500642147,-460.0,0.00019178,2]
[375009711,1753500642157,-462.41505326,0.00019178,2]
[375009713,1753500642167,-462.3454776,0.00019178,2]
[375009715,1753500642176,-460.0,0.00019178,2]
[375009717,1753500642186,-461.6130995,0.00019178,2]
[375009719,1753500642196,-464.62071609,0.00019178,2]
[375009721,1753500642206,-462.80393697,0.00019178,2]
[375009723,1753500642215,-460.0,0.00019178,2]
[375009725,1753500642227,-204.43599323,0.00019178,2]
[375009727,1753500642237,-460.0,0.00019178,2]
[375009729,1753500642247,-460.0,0.00019178,2]
[375009731,1753500642257,-460.0,0.00019178,2]
[375009734,1753500642267,-460.0,0.00019178,2]
[375009735,1753500642278,-495.7328283,0.00019178,2]
[375009738,1753500642287,-461.62415966,0.00019178,2]
[375009739,1753500642297,-460.0,0.00019178,2]
[375009742,1753500642307,-460.0150033,0.00019178,2]
[375009743,1753500642317,-460.0,0.00019178,2]
[375009745,1753500642327,-460.0,0.00019178,2]
[375009747,1753500642336,-464.56293058,0.00019178,2]
[375009749,1753500642349,-460.0,0.00019178,2]
[375009751,1753500642359,-460.0,0.00019178,2]
[375009753,1753500642368,-464.81655355,0.00019178,2]
[375009756,1753500642377,-461.99572718,0.00019178,2]
[375009758,1753500642387,-462.06876648,0.00019178,2]
[375009760,1753500642397,-460.0,0.00019178,2]
[375009762,1753500642406,-460.0,0.00019178,2]
[375009764,1753500642416,-461.70991136,0.00019178,2]
[375009766,1753500642426,-460.0,0.00019178,2]
[375009768,1753500642434,-460.0,0.00019178,2]
[375009770,1753500642444,-460.0,0.00019178,2]
[375009772,1753500642455,-462.4634468,0.00019178,2]
[375009774,1753500642466,-399.4441895,0.00019178,2]
[375009776,1753500642477,-460.0,0.00019178,2]
[375009778,1753500642486,-460.0,0.00019178,2]
[375009780,1753500642497,-500.0,0.00019178,2]
[375009782,1753500642506,-500.0,0.00019178,2]
[375009784,1753500642516,-500.0,0.00019178,2]
[375009786,1753500642526,-500.0,0.00019178,2]
[375009788,1753500642537,-500.0,0.00019178,2]
[375009790,1753500642547,-500.0,0.00019178,2]
[375009792,1753500642557,-500.0,0.00019178,2]
[375009794,1753500642567,-500.0,0.00019178,2]
[375009796,1753500642576,-500.0,0.00019178,2]
[375009798,1753500642585,-500.0,0.00019178,2]
[375009800,1753500642595,-500.0,0.00019178,2]
[375009802,1753500642604,-500.0,0.00019178,2]
[375009804,1753500642613,-500.0,0.00019178,2]
[375009806,1753500642623,-500.0,0.00019178,2]
[375009808,1753500642634,-500.0,0.00019178,2]
[375009810,1753500642643,-500.0,0.00019178,2]
[375009812,1753500642653,-461.88577089,0.00019178,2]
[375009814,1753500642663,-500.0,0.00019178,2]
[375009816,1753500642673,-500.0,0.00019178,2]
[375009818,1753500642682,-500.0,0.00019178,2]
[375009820,1753500642692,-394.05344615,0.00019178,2]
[375009822,1753500642701,-460.58538795,0.00019178,2]
[375009824,1753500642710,-275.59391628,0.00019178,2]
[375009826,1753500642720,-1262.36,0.00019178,2]
[375009828,1753500642729,-460.0,0.00019178,2]
[375009830,1753500642739,-460.0,0.00019178,2]
[375009832,1753500642748,-374.56816575,0.00019178,2]
[375009834,1753500642757,-460.0,0.00019178,2]